bitfinex/quotes_SOLUSD_20251117
["timestamp","ask_amount","ask_price","bid_price","bid_amount"]
[1763420759860,0.69,132.02,131.99,7.3838839]
[1763420760056,0.69,132.02,131.98,7.3838839]
[1763420760243,0.69,132.02,131.99,7.3838839]
[1763420760647,5.08903239,132.03,132.01,7.3838839]
[1763420760847,0.2,132.05,132.02,7.3838839]
[1763420761154,8.2738839,132.05,132.0,7.3838839]
[1763420761358,19.01096,132.05,132.0,7.3838839]
[1763420761557,0.69,132.04,132.01,7.3838839]
[1763420762040,5.77690425,132.04,132.01,7.3838839]
[1763420762236,5.77690425,132.04,132.0,7.3838839]
[1763420762440,0.69,132.03,132.0,7.3838839]
[1763420763568,0.69,132.03,131.99,7.3838839]
[1763420763867,18.12096,132.02,131.99,7.3838839]
[1763420764365,18.81096,132.02,131.99,7.3838839]
[1763420765070,0.69,132.01,131.99,7.3838839]
[1763420765442,18.12096,132.02,131.99,7.3838839]
[1763420765736,18.81096,132.02,131.99,7.3838839]
[1763420767277,18.12096,132.02,131.99,7.3838839]
[1763420767578,0.69,132.01,131.99,7.3838839]
[1763420767763,18.12096,132.02,131.99,7.3838839]
[1763420767966,18.12096,132.04,132.01,7.3838839]
[1763420768139,0.89,132.05,132.02,7.3838839]
[1763420768347,0.89,132.05,132.03,7.3838839]
[1763420768544,0.2,132.05,132.03,7.3838839]
[1763420768847,0.2,132.05,132.04,7.3838839]
[1763420769049,0.2,132.05,132.04,8.0538839]
[1763420769792,0.2,132.05,132.04,17.84271159]
[1763420769987,0.2,132.07,132.05,9.78882769]
[1763420770150,0.2,132.07,132.06,7.3838839]
[1763420770479,0.2,132.07,132.06,8.0538839]
[1763420770773,0.2,132.07,132.06,17.84271159]
[1763420771139,0.2,132.07,132.06,7.3838839]
[1763420772464,0.86,132.07,132.03,18.12096]
[1763420772659,0.86,132.07,132.06,7.3838839]
[1763420772986,0.2,132.07,132.06,7.3838839]
[1763420773373,0.2,132.07,132.06,8.0438839]
[1763420773760,0.2,132.08,132.07,9.78882769]
[1763420773972,0.2,132.08,132.07,25.21659549]
[1763420774277,0.2,132.13,132.1,18.12096]
[1763420774451,0.2,132.13,132.12,7.3838839]
[1763420775452,0.2,132.15,132.12,8.0438839]
[1763420775765,0.2,132.15,132.14,7.3838839]
[1763420777263,0.2,132.15,132.13,7.3838839]
[1763420777674,0.2,132.15,132.14,7.3838839]
[1763420777983,0.2,132.15,132.08,8.14100079]
[1763420777984,0.86,132.15,132.11,7.3838839]
[1763420778352,0.69,132.14,132.11,7.3838839]
[1763420778547,0.69,132.14,132.12,7.3838839]
[1763420778752,0.69,132.14,132.08,7.3838839]
[1763420778753,0.2,132.15,132.13,7.3838839]
[1763420779190,0.2,132.15,132.14,7.3838839]
[1763420780099,0.2,132.15,132.14,8.0338839]
[1763420780307,0.2,132.15,132.14,7.3838839]
[1763420780468,0.2,132.15,132.14,8.0338839]
[1763420780672,0.2,132.15,132.14,17.82271159]
[1763420781971,0.2,132.15,132.14,17.17271159]
[1763420782288,0.1,132.17,132.15,9.78882769]
[1763420782489,0.1,132.17,132.16,24.55659549]
[1763420782799,0.1,132.17,132.16,25.20659549]
[1763420783167,0.1,132.17,132.16,24.55659549]
[1763420783366,0.1,132.17,132.16,7.3838839]
[1763420783566,0.1,132.17,132.16,25.20659549]
[1763420784181,0.1,132.17,132.16,17.82271159]
[1763420785773,0.1,132.17,132.16,7.3838839]
[1763420786373,0.1,132.17,132.16,8.0338839]
[1763420788672,0.1,132.17,132.11,18.12096]
[1763420788673,0.79,132.17,132.11,18.12096]
[1763420788878,0.1,132.22,132.11,18.12096]
[1763420788879,0.1,132.22,132.16,14.7677678]
[1763420789081,0.1,132.22,132.21,7.3838839]
[1763420789284,0.79,132.22,132.21,7.3838839]
[1763420789491,0.79,132.22,132.2,7.3838839]
[1763420790086,0.1,132.22,132.21,7.3838839]
[1763420790787,0.79,132.22,132.17,9.78882769]
[1763420790994,0.79,132.22,132.21,7.3838839]
[1763420792794,0.79,132.22,132.2,7.3838839]
[1763420793802,0.79,132.22,132.19,7.3838839]
[1763420794096,0.79,132.22,132.2,7.3838839]
[1763420795492,0.79,132.22,132.21,7.3838839]
[1763420796586,0.1,132.22,132.21,7.3838839]
[1763420796907,0.1,132.22,132.21,11.52472808]
[1763420797099,0.1,132.22,132.21,21.96355577]
[1763420797398,0.1,132.22,132.21,11.52472808]
[1763420797984,0.79,132.22,132.19,11.52472808]
[1763420798187,0.79,132.22,132.2,11.52472808]
[1763420799303,0.79,132.22,132.21,11.52472808]
[1763420800399,0.1,132.22,132.21,11.52472808]
[1763420801826,0.82,132.22,132.17,27.90978769]
[1763420802125,0.82,132.22,132.2,11.52472808]
[1763420803224,0.82,132.22,132.21,11.52472808]
[1763420803225,0.1,132.22,132.21,11.52472808]
[1763420806003,0.1,132.22,132.21,21.31355577]
[1763420807191,0.1,132.22,132.21,11.52472808]
[1763420807393,0.82,132.22,132.21,11.52472808]
[1763420807586,0.82,132.22,132.17,9.78882769]
[1763420807792,0.82,132.22,132.2,11.52472808]
[1763420808296,0.82,132.22,132.17,9.78882769]
[1763420808506,0.82,132.22,132.19,11.52472808]
[1763420810520,0.82,132.22,132.13,4.85683039]
[1763420810521,12.34472808,132.22,132.13,4.85683039]
[1763420810699,29.64568808,132.21,132.13,10.45882769]
[1763420810894,16.56104308,132.2,132.15,11.52472808]
[1763420811096,18.12096,132.17,132.12,11.52472808]
[1763420811324,29.64568808,132.17,132.12,11.52472808]
[1763420811517,5.78052028,132.16,132.12,11.52472808]
[1763420811818,17.30524836,132.16,132.11,11.52472808]
[1763420812000,0.72,132.15,132.11,11.52472808]
[1763420812398,5.78052028,132.15,132.11,11.52472808]
[1763420812797,5.78052028,132.14,132.05,0.67]
[1763420813006,5.06052028,132.13,132.09,11.52472808]
[1763420813209,5.06052028,132.12,132.08,11.52472808]
[1763420813406,5.06052028,132.12,132.04,9.98882769]
[1763420813407,5.78052028,132.11,132.07,11.52472808]
[1763420813630,5.06052028,132.11,132.1,11.52472808]
[1763420813799,5.06052028,132.12,132.1,11.52472808]
[1763420814148,5.06052028,132.13,132.11,11.52472808]
[1763420814498,5.06052028,132.13,132.12,11.52472808]
[1763420814835,5.06052028,132.15,132.12,11.52472808]
[1763420815034,0.72,132.16,132.14,11.52472808]
[1763420815336,5.7966122,132.15,132.09,10.45882769]
[1763420815498,0.72,132.15,132.13,11.52472808]
[1763420815706,5.7966122,132.14,132.11,11.52472808]
[1763420815925,5.0766122,132.13,132.11,11.52472808]
[1763420816129,5.7966122,132.13,132.11,11.52472808]
[1763420816302,11.52472808,132.15,132.1,11.52472808]
[1763420816303,5.7966122,132.12,132.1,11.52472808]
[1763420816601,0.72,132.12,132.1,11.52472808]
[1763420817004,5.7966122,132.12,132.1,11.52472808]
[1763420817207,0.72,132.12,132.11,11.52472808]
[1763420817507,0.72,132.12,132.1,11.52472808]
[1763420817822,5.7966122,132.12,132.1,11.52472808]
[1763420818004,0.72,132.12,132.1,11.52472808]
[1763420818200,5.0766122,132.11,132.07,0.67]
[1763420818538,0.72,132.12,132.1,11.52472808]
[1763420818711,0.72,132.12,132.11,11.52472808]
[1763420819826,0.72,132.12,132.1,11.52472808]
[1763420820325,5.7966122,132.12,132.1,11.52472808]
[1763420820506,0.72,132.12,132.1,11.52472808]
[1763420820703,5.7966122,132.11,132.06,13.88882769]
[1763420821032,0.72,132.11,132.09,11.52472808]
[1763420821226,0.72,132.1,132.09,11.52472808]
[1763420821431,0.72,132.1,132.04,0.2]
[1763420821432,12.24472808,132.1,132.04,0.2]
[1763420821618,16.60134028,132.09,132.04,11.72472808]
[1763420821929,16.60134028,132.08,132.04,0.2]
[1763420822232,11.52472808,132.06,132.04,0.2]
[1763420822416,29.64568808,132.05,132.02,0.2]
[1763420822616,11.52472808,132.03,132.02,0.2]
[1763420822923,11.52472808,132.03,131.96,0.67]
[1763420822924,18.12096,132.02,131.96,11.52472808]
[1763420823228,5.0766122,132.01,131.98,11.52472808]
[1763420823431,5.7966122,132.01,131.99,11.52472808]
[1763420823631,18.84096,132.01,131.99,11.52472808]
[1763420823813,0.72,132.0,131.98,11.52472808]
[1763420824134,5.79048906,132.0,131.96,11.52472808]
[1763420824330,0.72,132.0,131.96,11.52472808]
[1763420824504,0.72,131.99,131.96,11.52472808]
[1763420824831,11.52472808,131.97,131.92,11.52472808]
[1763420825035,11.52472808,131.95,131.85,11.62472808]
[1763420825219,11.52472808,131.94,131.87,0.67]
[1763420825411,29.64568808,131.94,131.89,11.52472808]
[1763420825606,0.72,131.93,131.89,11.52472808]
[1763420825801,0.72,131.93,131.88,11.52472808]
[1763420825802,11.52472808,131.92,131.88,11.52472808]
[1763420826007,11.52472808,131.91,131.87,11.52472808]
[1763420826207,0.72,131.9,131.87,11.52472808]
[1763420826620,0.72,131.9,131.86,11.52472808]
[1763420826621,12.24472808,131.9,131.86,11.52472808]
[1763420827139,12.24472808,131.89,131.85,0.1]
[1763420827337,11.52472808,131.86,131.85,0.1]
[1763420827712,12.24472808,131.86,131.85,0.1]
[1763420827908,18.12096,131.84,131.77,0.1]
[1763420828120,11.52472808,131.8,131.77,0.1]
[1763420828325,11.52472808,131.78,131.77,0.1]
[1763420828540,11.52472808,131.78,131.71,0.1]
[1763420828541,29.64568808,131.78,131.71,0.1]
[1763420828832,0.72,131.77,131.71,0.77]
[1763420829039,0.72,131.77,131.73,11.52472808]
[1763420829242,0.72,131.77,131.74,11.62472808]
[1763420829411,0.72,131.77,131.74,0.1]
[1763420829614,29.64568808,131.75,131.71,0.1]
[1763420829809,0.72,131.74,131.71,0.1]
[1763420830514,0.72,131.78,131.73,11.52472808]
[1763420830725,0.72,131.77,131.74,11.52472808]
[1763420830929,12.24472808,131.77,131.73,11.52472808]
[1763420831118,30.36568808,131.77,131.72,11.52472808]
[1763420831323,11.52472808,131.75,131.71,0.1]
[1763420831520,11.52472808,131.75,131.71,11.62472808]
[1763420831827,0.7,131.74,131.71,11.62472808]
[1763420832037,0.7,131.74,131.72,11.52472808]
[1763420832244,0.7,131.79,131.73,11.52472808]
[1763420832447,0.7,131.81,131.77,11.52472808]
[1763420832833,18.82096,131.81,131.77,11.52472808]
[1763420833245,0.7,131.8,131.77,11.52472808]
[1763420834137,18.12096,131.81,131.79,11.52472808]
[1763420834538,18.82096,131.81,131.79,7.55410137]
[1763420834931,18.12096,131.81,131.78,11.52472808]
[1763420835134,11.52472808,131.79,131.74,11.52472808]
[1763420835336,0.7,131.78,131.74,11.52472808]
[1763420835851,0.7,131.78,131.75,11.52472808]
[1763420836152,18.82096,131.78,131.74,11.52472808]
[1763420836346,18.82096,131.78,131.75,11.52472808]
[1763420836544,18.82096,131.78,131.71,0.8]
[1763420836545,0.7,131.78,131.72,9.78882769]
[1763420836740,0.7,131.78,131.76,11.52472808]
[1763420836936,12.22472808,131.78,131.74,11.52472808]
[1763420837144,12.22472808,131.78,131.73,11.52472808]
[1763420837463,12.22472808,131.78,131.71,0.1]
[1763420837464,30.34568808,131.77,131.72,11.52472808]
[1763420837746,18.82096,131.77,131.74,11.52472808]
[1763420837958,18.12096,131.76,131.75,11.52472808]
[1763420838165,9.78882769,131.8,131.75,11.52472808]
[1763420838166,0.66,131.8,131.75,11.52472808]
[1763420838331,18.12096,131.79,131.77,11.52472808]
[1763420838649,37.18803363,131.88,131.78,11.52472808]
[1763420838650,0.66,131.84,131.78,11.52472808]
[1763420838852,11.52472808,131.85,131.81,11.52472808]
[1763420839058,9.78882769,131.82,131.72,0.67]
[1763420839253,29.64568808,131.81,131.76,11.52472808]
[1763420839563,12.18472808,131.81,131.77,11.52472808]
[1763420839736,0.66,131.8,131.76,11.52472808]
[1763420839940,18.12096,131.78,131.76,11.52472808]
[1763420840154,18.12096,131.78,131.75,11.52472808]
[1763420840464,18.12096,131.79,131.77,11.52472808]
[1763420840667,0.66,131.78,131.77,11.52472808]
[1763420840852,18.12096,131.79,131.73,0.67]
[1763420841159,0.66,131.78,131.77,11.52472808]
[1763420841361,18.12096,131.81,131.77,11.52472808]
[1763420841660,18.12096,131.81,131.76,12.19472808]
[1763420841860,18.12096,131.81,131.79,11.52472808]
[1763420842033,0.66,131.81,131.8,11.52472808]
[1763420842232,18.12096,131.82,131.77,0.67]
[1763420842436,18.12096,131.82,131.8,11.52472808]
[1763420842659,18.78096,131.82,131.77,0.67]
[1763420842857,18.78096,131.82,131.8,11.52472808]
[1763420843646,18.12096,131.8,131.74,0.67]
[1763420843967,11.52472808,131.77,131.71,0.1]
[1763420844136,11.52472808,131.77,131.73,11.52472808]
[1763420844137,18.12096,131.76,131.73,11.52472808]
[1763420844453,18.78096,131.76,131.73,11.52472808]
[1763420844654,18.12096,131.75,131.73,11.52472808]
[1763420844859,0.66,131.78,131.74,11.52472808]
[1763420845038,7.94957219,131.86,131.76,11.52472808]
[1763420845039,18.12096,131.77,131.76,11.52472808]
[1763420845358,18.12096,131.77,131.75,11.52472808]
[1763420845652,0.66,131.78,131.76,11.52472808]
[1763420845854,18.78096,131.78,131.76,11.52472808]
[1763420846446,18.12096,131.78,131.76,11.52472808]
[1763420846754,18.78096,131.78,131.76,11.52472808]
[1763420847559,12.18472808,131.77,131.73,11.52472808]
[1763420847940,0.66,131.77,131.73,11.52472808]
[1763420848144,18.12096,131.79,131.74,11.52472808]
[1763420848353,18.12096,131.79,131.76,11.52472808]
[1763420848536,18.12096,131.77,131.76,11.52472808]
[1763420848937,12.18472808,131.84,131.76,12.19472808]
[1763420849243,18.12096,131.8,131.76,11.52472808]
[1763420849553,0.66,131.79,131.75,11.52472808]
[1763420850248,29.64568808,131.8,131.75,11.52472808]
[1763420850460,18.12096,131.81,131.78,11.52472808]
[1763420850781,29.64568808,131.81,131.76,12.19472808]
[1763420850963,0.66,131.8,131.76,11.52472808]
[1763420851260,0.66,131.8,131.76,12.19472808]
[1763420851562,0.66,131.8,131.77,11.52472808]
[1763420851945,12.18472808,131.85,131.79,11.52472808]
[1763420852151,11.52472808,131.84,131.78,0.67]
[1763420852466,11.52472808,131.84,131.76,11.52472808]
[1763420852467,11.52472808,131.81,131.76,11.52472808]
[1763420852963,0.66,131.81,131.77,11.52472808]
[1763420853354,11.52472808,131.82,131.78,11.52472808]
[1763420853666,18.12096,131.83,131.79,11.52472808]
[1763420853841,0.66,131.86,131.8,11.52472808]
[1763420854164,11.52472808,131.86,131.82,11.52472808]
[1763420854372,12.18472808,131.87,131.82,11.52472808]
[1763420854547,18.12096,131.84,131.8,0.67]
[1763420854747,18.12096,131.83,131.82,11.52472808]
[1763420854942,18.12096,131.83,131.81,11.52472808]
[1763420855161,12.18472808,131.84,131.8,11.52472808]
[1763420856570,11.52472808,131.82,131.75,0.67]
[1763420856872,18.12096,131.79,131.76,7.40744435]
[1763420857244,18.12096,131.79,131.77,8.07744435]
[1763420857444,18.12096,131.79,131.78,7.40744435]
[1763420857746,18.12096,131.84,131.78,8.07744435]
[1763420857961,18.12096,131.84,131.81,7.40744435]
[1763420858280,18.12096,131.84,131.8,7.40744435]
[1763420858566,18.78096,131.84,131.8,7.40744435]
[1763420858766,26.18840435,131.84,131.8,7.40744435]
[1763420859063,26.18840435,131.84,131.75,7.40744435]
[1763420859064,18.12096,131.78,131.75,7.40744435]
[1763420859239,7.40744435,131.81,131.75,7.40744435]
[1763420859240,18.12096,131.79,131.76,7.40744435]
[1763420859439,18.12096,131.79,131.76,8.07744435]
[1763420859639,0.66,131.78,131.74,7.40744435]
[1763420859871,0.66,131.78,131.74,8.07744435]
[1763420860243,18.12096,131.79,131.77,7.40744435]
[1763420860453,18.12096,131.79,131.78,7.40744435]
[1763420860954,8.06744435,131.83,131.78,8.07744435]
[1763420861160,8.06744435,131.83,131.79,8.07744435]
[1763420861161,18.12096,131.82,131.79,8.07744435]
[1763420861359,7.40744435,131.84,131.8,7.40744435]
[1763420861564,13.06536099,131.84,131.79,8.07744435]
[1763420861768,18.12096,131.83,131.79,8.07744435]
[1763420862065,26.20840435,131.83,131.78,7.40744435]
[1763420862247,30.52747047,131.82,131.77,7.40744435]
[1763420862575,4.99906612,131.81,131.77,7.40744435]
[1763420862749,4.99906612,131.81,131.77,8.08744435]
[1763420863171,4.99906612,131.81,131.78,7.40744435]
[1763420863377,4.99906612,131.81,131.76,7.40744435]
[1763420863378,0.68,131.8,131.76,7.40744435]
[1763420863682,4.99906612,131.79,131.75,8.08744435]
[1763420863852,4.99906612,131.79,131.76,7.40744435]
[1763420864059,23.12002612,131.78,131.75,7.40744435]
[1763420864254,4.99906612,131.77,131.76,8.08744435]
[1763420864986,4.99906612,131.77,131.71,0.1]
[1763420864987,31.20747047,131.77,131.71,0.1]
[1763420865291,31.82085987,131.74,131.71,0.1]
[1763420865457,4.99906612,131.73,131.71,0.1]
[1763420865659,4.99906612,131.72,131.71,0.1]
[1763420866464,11.29152164,131.72,131.71,0.1]
[1763420867479,13.54421544,131.72,131.71,0.1]
[1763420867859,4.99906612,131.72,131.71,0.1]
[1763420868061,13.43780989,131.72,131.71,0.1]
[1763420868272,4.99906612,131.72,131.71,0.1]
[1763420868468,13.45213234,131.72,131.71,0.1]
[1763420868675,27.90978769,131.71,131.7,0.1]
[1763420868888,40.99629816,131.71,131.7,0.1]
[1763420869900,23.12002612,131.71,131.7,0.1]
[1763420870078,35.82176156,131.71,131.7,0.1]
[1763420870390,4.99906612,131.71,131.7,8.18744435]
[1763420870569,11.35862102,131.71,131.7,0.78]
[1763420871385,11.35862102,131.71,131.7,8.18744435]
[1763420871570,4.99906612,131.71,131.7,8.18744435]
[1763420872768,4.99906612,131.71,131.7,0.78]
[1763420872974,11.35862102,131.71,131.7,0.1]
[1763420873165,4.99906612,131.71,131.7,0.1]
[1763420873362,4.99906612,131.71,131.7,7.50744435]
[1763420873682,4.99906612,131.71,131.7,8.18744435]
[1763420873683,4.27906612,131.71,131.7,8.18744435]
[1763420873878,3.55906612,131.71,131.7,8.18744435]
[1763420874968,3.55906612,131.71,131.7,7.50744435]
[1763420875790,3.55906612,131.71,131.7,7.70744435]
[1763420876383,6.36846576,131.76,131.7,7.70744435]
[1763420876681,6.36846576,131.75,131.73,7.40744435]
[1763420877188,6.36846576,131.75,131.7,0.1]
[1763420877484,18.12096,131.73,131.72,7.40744435]
[1763420877863,7.04846576,131.75,131.72,7.40744435]
[1763420878063,7.40744435,131.73,131.7,0.1]
[1763420878279,8.08744435,131.72,131.7,0.1]
[1763420878972,0.68,131.72,131.7,0.1]
[1763420879658,8.08744435,131.72,131.7,0.1]
[1763420880062,0.68,131.71,131.7,0.1]
[1763420880273,14.45591011,131.74,131.7,0.1]
[1763420880486,26.20840435,131.73,131.7,0.1]
[1763420880686,7.40744435,131.72,131.7,0.1]
[1763420880993,8.08744435,131.72,131.7,0.1]
[1763420881164,0.68,131.71,131.7,0.1]
[1763420881365,8.08744435,131.71,131.7,0.1]
[1763420881569,8.08744435,131.71,131.69,0.1]
[1763420881764,8.08744435,131.7,131.69,0.1]
[1763420881970,6.36846576,131.71,131.69,0.1]
[1763420882195,18.80096,131.71,131.69,0.1]
[1763420882396,6.36846576,131.74,131.7,7.40744435]
[1763420882577,18.12096,131.72,131.7,7.40744435]
[1763420882768,7.40744435,131.75,131.69,0.4]
[1763420883087,18.12096,131.73,131.69,7.80744435]
[1763420883391,7.40744435,131.74,131.69,7.80744435]
[1763420883581,25.52840435,131.73,131.69,0.1]
[1763420883785,7.40744435,131.73,131.69,0.1]
[1763420884086,26.20840435,131.73,131.69,0.1]
[1763420884292,0.68,131.72,131.69,7.50744435]
[1763420884898,18.12096,131.73,131.7,7.40744435]
[1763420885573,18.80096,131.73,131.7,7.40744435]
[1763420885890,18.12096,131.73,131.7,7.40744435]
[1763420886374,18.12096,131.73,131.71,7.40744435]
[1763420887588,18.12096,131.73,131.7,7.70744435]
[1763420887895,18.12096,131.73,131.69,0.1]
[1763420888078,18.12096,131.7,131.69,0.1]
[1763420888595,23.88377423,131.7,131.69,0.1]
[1763420889495,23.20377423,131.7,131.69,0.1]
[1763420889677,8.47788484,131.75,131.69,0.1]
[1763420889678,18.12096,131.74,131.69,7.80744435]
[1763420889870,18.12096,131.74,131.7,7.40744435]
[1763420890203,18.12096,131.74,131.72,7.40744435]
[1763420890372,18.12096,131.74,131.71,7.70744435]
[1763420890694,7.40744435,131.76,131.7,7.70744435]
[1763420890886,18.12096,131.76,131.72,7.40744435]
[1763420891080,5.08474073,131.75,131.73,7.40744435]
[1763420891701,18.12096,131.75,131.73,7.40744435]
[1763420892167,18.12096,131.75,131.72,7.70744435]
[1763420893588,18.26671253,131.81,131.74,7.40744435]
[1763420893589,0.72,131.81,131.74,7.40744435]
[1763420893792,0.72,131.82,131.78,7.40744435]
[1763420893980,7.40744435,131.82,131.77,7.40744435]
[1763420894170,18.84096,131.81,131.77,7.40744435]
[1763420894372,18.12096,131.77,131.74,7.40744435]
[1763420895591,18.12096,131.77,131.72,0.3]
[1763420895812,18.12096,131.77,131.74,7.40744435]
[1763420897406,18.84096,131.79,131.75,7.40744435]
[1763420897606,5.08719056,131.78,131.75,7.40744435]
[1763420897901,5.80719056,131.78,131.74,7.40744435]
[1763420898112,0.66,131.77,131.73,7.40744435]
[1763420898701,7.40744435,131.76,131.71,7.40744435]
[1763420898999,7.40744435,131.75,131.71,4.1]
[1763420899185,13.15455417,131.75,131.71,4.1]
[1763420899386,0.66,131.74,131.71,4.1]
[1763420899903,0.66,131.74,131.71,11.50744435]
[1763420900085,5.08710982,131.75,131.71,11.50744435]
[1763420900402,18.12096,131.76,131.74,7.40744435]
[1763420900820,0.66,131.78,131.74,7.40744435]
[1763420901096,5.75021617,131.78,131.74,7.40744435]
[1763420901272,7.40744435,131.76,131.71,7.40744435]
[1763420901708,0.66,131.75,131.71,7.40744435]
[1763420902075,5.09021617,131.76,131.72,7.40744435]
[1763420902280,5.09021617,131.76,131.69,9.88882769]
[1763420902281,23.21117617,131.76,131.74,7.40744435]
[1763420902502,0.66,131.78,131.74,7.40744435]
[1763420903210,13.16123441,131.78,131.73,7.40744435]
[1763420903505,25.52840435,131.77,131.72,7.40744435]
[1763420903688,5.09379006,131.76,131.72,7.40744435]
[1763420903891,7.40744435,131.75,131.7,7.40744435]
[1763420904113,7.40744435,131.74,131.69,9.88882769]
[1763420904405,7.40744435,131.72,131.69,0.1]
[1763420904604,12.50123441,131.72,131.69,0.1]
[1763420904783,5.75379006,131.72,131.69,0.1]
[1763420906108,13.16123441,131.72,131.69,0.1]
[1763420906408,0.66,131.71,131.69,0.1]
[1763420906714,8.06744435,131.71,131.69,0.1]
[1763420907220,13.16123441,131.7,131.69,0.1]
[1763420907800,19.52218834,131.7,131.69,0.1]
[1763420908006,37.64314834,131.7,131.69,0.1]
[1763420908599,18.12096,131.67,131.65,0.2]
[1763420908800,13.16123441,131.66,131.65,0.2]
[1763420909001,5.09379006,131.66,131.65,0.2]
[1763420909403,13.22123441,131.66,131.65,0.2]
[1763420909930,5.09379006,131.66,131.65,0.2]
[1763420910309,5.81379006,131.66,131.65,0.2]
[1763420911633,13.22123441,131.66,131.65,0.2]
[1763420912429,25.52840435,131.64,131.63,0.1]
[1763420912609,30.62219441,131.64,131.63,0.1]
[1763420912809,31.34219441,131.64,131.63,0.1]
[1763420913316,23.93475006,131.64,131.63,0.1]
[1763420913522,18.12096,131.64,131.63,0.1]
[1763420914035,23.20283821,131.64,131.63,0.1]
[1763420914704,8.12744435,131.67,131.63,0.1]
[1763420914908,18.12096,131.65,131.63,0.1]
[1763420915516,18.84096,131.66,131.63,0.1]
[1763420915735,5.07850044,131.65,131.63,0.1]
[1763420916333,18.12096,131.66,131.63,0.1]
[1763420916633,18.12096,131.66,131.63,0.7]
[1763420916937,7.40744435,131.64,131.63,0.1]
[1763420917134,12.48418,131.65,131.63,0.1]
[1763420917438,7.40744435,131.65,131.63,0.1]
[1763420918733,5.79673565,131.66,131.63,0.1]
[1763420918937,16.70913697,131.66,131.63,0.1]
[1763420920530,17.42913697,131.66,131.63,0.1]
[1763420920738,16.70913697,131.66,131.63,0.1]
[1763420921034,5.07673565,131.66,131.63,0.7]
[1763420921231,18.12096,131.67,131.63,0.7]
[1763420921425,11.63240132,131.68,131.63,0.7]
[1763420921612,11.63240132,131.68,131.63,12.33240132]
[1763420921807,29.75336132,131.66,131.63,0.1]
[1763420922124,5.06697772,131.65,131.63,0.1]
[1763420922832,0.71,131.66,131.63,0.1]
[1763420923226,12.34240132,131.66,131.63,0.1]
[1763420923414,5.06649168,131.66,131.63,0.1]
[1763420923616,18.12096,131.67,131.64,0.6]
[1763420924015,18.12096,131.67,131.63,0.1]
[1763420924016,29.75336132,131.67,131.63,0.7]
[1763420924210,0.71,131.66,131.63,0.1]
[1763420924433,17.40756579,131.66,131.63,0.1]
[1763420924717,12.34240132,131.66,131.63,0.1]
[1763420924918,17.40756579,131.66,131.63,0.1]
[1763420925532,12.34240132,131.66,131.63,0.1]
[1763420925736,17.40741686,131.66,131.63,0.1]
[1763420926316,12.34240132,131.65,131.63,0.1]
[1763420927136,0.71,131.64,131.63,0.1]
[1763420927735,17.40741686,131.66,131.63,0.1]
[1763420928444,18.12096,131.67,131.63,0.7]
[1763420928651,30.46336132,131.67,131.63,0.7]
[1763420928825,30.46336132,131.67,131.63,0.1]
[1763420929020,5.05926138,131.66,131.63,0.1]
[1763420929221,0.71,131.66,131.63,0.1]
[1763420929936,29.75336132,131.67,131.63,0.1]
[1763420930238,18.12096,131.67,131.63,0.7]
[1763420930418,29.75336132,131.67,131.63,0.1]
[1763420930619,29.75336132,131.67,131.63,0.7]
[1763420931021,30.46336132,131.67,131.63,0.7]
[1763420932025,30.46336132,131.67,131.63,0.1]
[1763420932228,30.46336132,131.67,131.63,0.7]
[1763420932627,18.12096,131.67,131.63,0.7]
[1763420932828,30.46336132,131.67,131.63,0.1]
[1763420933359,0.71,131.66,131.63,0.1]
[1763420934235,29.75336132,131.67,131.63,0.1]
[1763420934455,18.83096,131.67,131.63,0.1]
[1763420934754,30.46336132,131.67,131.63,0.1]
[1763420934955,29.75336132,131.67,131.64,0.6]
[1763420935248,29.75336132,131.67,131.63,0.7]
[1763420935422,30.46336132,131.67,131.63,0.7]
[1763420935950,30.46336132,131.67,131.63,0.1]
[1763420936146,30.46336132,131.67,131.63,10.48882769]
[1763420936447,30.46336132,131.67,131.63,0.1]